[Event "58th Akiba Rubinstein D 2022"]
[Site "Polanica-Zdroj"]
[Date "2022.08.14"]
[Round "2.27"]
[White "Ugorek, Kacper"]
[Black "Juszczak, Milosz"]
[Result "1-0"]
[ECO "D78"]
[WhiteElo "1747"]
[BlackElo "1387"]
[Annotator "NA RC"]
[PlyCount "93"]
[EventDate "2022.08.13"]
[EventCountry "POL"]
[SourceTitle "playchess.com"]
[Source "ChessBase"]
[SourceQuality "1"]
[TimeControl "40/5400+30:1800+30"]

1. d4 {[%emt 0:00:03]} d5 {[%emt 0:00:17]} 2. c4 {[%emt 0:00:07]} c6 {[%emt 0:00:39]} 3. Nf3 {[%emt 0:00:10]} Nf6 {[%emt 0:00:55]} 4. g3 {[%emt 0:00:11]} g6 {[%emt 0:04:41]} 5. Bg2 {[%emt 0:00:17]} Bg7 {[%emt 0:00:48]} 6. O-O {[%emt 0:00:17]} O-O {[%emt 0:00:19]} 7. e3 {[%emt 0:01:20]} Qb6 {[%emt 0:03:22]} 8. Nc3 {[%emt 0:04:53]} dxc4 {[%emt 0:06:53]} 9. Ne5 {[%emt 0:04:32]} Be6 {[%emt 0:05:32]} 10. Na4 {[%emt 0:07:06]} Qc7 {[%emt 0:07:15]} 11. Nc5 {[%emt 0:02:44]} Qc8 {[%emt 0:00:44]} 12. Nxe6 {[%emt 0:00:58]} Qxe6 {[%emt 0:00:23]} 13. Qc2 {[%emt 0:01:26]} Nbd7 {[%emt 0:09:12]} 14. Nxc4 {[%emt 0:01:18]} Rac8 {[%emt 0:08:47]} 15. e4 {[%emt 0:12:49]} Ne8 {[%emt 0:00:30]} 16. Be3 b6 {[%emt 0:06:04]} 17. f4 {[%emt 0:05:18]} f5 {[%emt 0:04:18]} 18. e5 {[%emt 0:00:47]} Nc7 {[%emt 0:00:33]} 19. Rac1 {[%emt 0:06:33]} Nd5 {[%emt 0:04:53]} 20. Bd2 {[%emt 0:04:38]} c5 {[%emt 0:01:42]} 21. Qb3 {[%emt 0:05:23]} Nc7 {[%emt 0:08:14]} 22. d5 {[%emt 0:05:23]} Nxd5 {[%emt 0:05:21]} 23. Nd6 {[%emt 0:03:54]} Nxf4 {[%emt 0:03:01]} 24. Qxe6+ {[%emt 0:00:31]} Nxe6 {[%emt 0:00:05]} 25. Bd5 {[%emt 0:00:07]} exd6 {[%emt 0:03:24]} 26. Bxe6+ {[%emt 0:00:07]} Rf7 {[%emt 0:00:43]} 27. exd6 {[%emt 0:00:56]} Kf8 {[%emt 0:00:47]} 28. Bxf7 {[%emt 0:00:08]} Kxf7 {[%emt 0:00:10]} 29. Bc3 {[%emt 0:02:19]} Bf8 30. g4 {[%emt 0:02:27]} Bxd6 {[%emt 0:03:48]} 31. Rcd1 {[%emt 0:00:15]} Rc6 {[%emt 0:04:20]} 32. gxf5 {[%emt 0:00:17]} g5 {[%emt 0:03:15]} 33. Rf3 {[%emt 0:05:15]} Ne5 {[%emt 0:01:03]} 34. Rh3 {[%emt 0:00:39]} Kg8 {[%emt 0:02:14]} 35. Rxd6 {[%emt 0:00:28]} Rxd6 {[%emt 0:00:20]} 36. Bxe5 {[%emt 0:00:08]} Rd5 {[%emt 0:00:20]} 37. Re3 {[%emt 0:00:17]} b5 {[%emt 0:01:21]} 38. f6 {[%emt 0:00:30]} b4 {[%emt 0:00:34]} 39. Bb8 {[%emt 0:00:30]} Kf7 {[%emt 0:00:57]} 40. Bxa7 {[%emt 0:00:19]} Kxf6 {[%emt 0:00:14]} 41. a3 {[%emt 0:32:02]} bxa3 {[%emt 0:30:47]} 42. bxa3 {[%emt 0:00:09]} Rd1+ {[%emt 0:01:05]} 43. Kf2 {[%emt 0:00:39]} Rc1 {[%emt 0:00:35]} 44. a4 {[%emt 0:03:23]} c4 {[%emt 0:00:57]} 45. a5 {[%emt 0:00:13]} c3 {[%emt 0:00:22]} 46. Rxc3 {[%emt 0:00:17]} Rh1 {[%emt 0:01:02]} 47. Kg2 {[%emt 0:00:09]} 1-0

[Event "58th Akiba Rubinstein D 2022"]
[Site "Polanica-Zdroj"]
[Date "2022.08.14"]
[Round "2.28"]
[White "Suszczynski, Dominik"]
[Black "Ursnik, Patryk"]
[Result "0-1"]
[ECO "B20"]
[WhiteElo "1329"]
[BlackElo "1671"]
[Annotator "NA RC"]
[PlyCount "50"]
[EventDate "2022.08.13"]
[EventCountry "POL"]
[SourceTitle "playchess.com"]
[Source "ChessBase"]
[SourceQuality "1"]
[TimeControl "40/5400+30:1800+30"]

1. e4 {[%emt 0:00:03]} c5 {[%emt 0:12:16]} 2. b4 {[%emt 0:00:03]} e5 3. bxc5 {[%emt 0:01:05]} Bxc5 {[%emt 0:00:22]} 4. Nf3 {[%emt 0:00:16]} Nc6 {[%emt 0:00:06]} 5. Bc4 {[%emt 0:02:04]} Nf6 {[%emt 0:00:30]} 6. d3 {[%emt 0:02:33]} d5 {[%emt 0:01:58]} 7. exd5 {[%emt 0:00:07]} Nxd5 {[%emt 0:00:09]} 8. O-O {[%emt 0:00:51]} O-O {[%emt 0:00:12]} 9. Bb2 {[%emt 0:01:21]} Bg4 {[%emt 0:00:27]} 10. Nbd2 {[%emt 0:07:08]} Bd4 {[%emt 0:05:08]} 11. Qc1 {[%emt 0:12:23]} Nf4 {[%emt 0:16:18]} 12. Re1 Qb6 {[%emt 0:08:06]} 13. Bxd4 {[%emt 0:13:44]} Nxd4 {[%emt 0:01:26]} 14. Nxd4 {[%emt 0:00:05]} Qxd4 15. Nb3 {[%emt 0:06:58]} Qd6 {[%emt 0:04:37]} 16. f3 {[%emt 0:04:46]} Bh5 {[%emt 0:14:14]} 17. Qe3 {[%emt 0:02:26]} Rfe8 {[%emt 0:04:37]} 18. d4 {[%emt 0:06:02]} Qb4 {[%emt 0:03:05]} 19. Nd2 {[%emt 0:02:48]} Rad8 {[%emt 0:05:10]} 20. Rab1 {[%emt 0:01:30]} Qe7 {[%emt 0:01:16]} 21. dxe5 {[%emt 0:01:07]} Qg5 {[%emt 0:00:17]} 22. g4 {[%emt 0:05:03]} Rxd2 {[%emt 0:00:49]} 23. Kh1 {[%emt 0:03:47]} Rxh2+ {[%emt 0:00:56]} 24. Kg1 {[%emt 0:00:44]} Rh1+ {[%emt 0:00:29]} 25. Kf2 {[%emt 0:00:39]} Qh4# {[%emt 0:00:13]} 0-1

[Event "58th Akiba Rubinstein D 2022"]
[Site "Polanica-Zdroj"]
[Date "2022.08.14"]
[Round "2.29"]
[White "Bialik, Nikodem"]
[Black "Gorecka, Zuzanna"]
[Result "1/2-1/2"]
[ECO "C01"]
[WhiteElo "1638"]
[BlackElo "1287"]
[Annotator "NA RC"]
[PlyCount "127"]
[EventDate "2022.08.13"]
[EventCountry "POL"]
[SourceTitle "playchess.com"]
[Source "ChessBase"]
[SourceQuality "1"]
[TimeControl "40/5400+30:1800+30"]

1. e4 {[%emt 0:12:09]} e6 {[%emt 0:00:04]} 2. d4 {[%emt 0:00:05]} d5 {[%emt 0:00:06]} 3. exd5 {[%emt 0:00:04]} exd5 {[%emt 0:00:07]} 4. c4 {[%emt 0:00:07]} Nf6 {[%emt 0:00:05]} 5. Bg5 {[%emt 0:00:44]} Be7 {[%emt 0:00:34]} 6. Nc3 {[%emt 0:00:07]} c6 {[%emt 0:00:18]} 7. Nf3 {[%emt 0:01:19]} Bf5 {[%emt 0:00:30]} 8. Qb3 {[%emt 0:00:18]} b6 {[%emt 0:01:58]} 9. Be2 {[%emt 0:02:07]} dxc4 {[%emt 0:01:00]} 10. Bxc4 {[%emt 0:02:12]} O-O {[%emt 0:01:11]} 11. O-O {[%emt 0:00:12]} b5 {[%emt 0:01:51]} 12. Bxf6 {[%emt 0:01:41]} Bxf6 {[%emt 0:00:09]} 13. Be2 {[%emt 0:01:07]} a5 {[%emt 0:01:07]} 14. a3 {[%emt 0:02:08]} a4 15. Qd1 Be6 {[%emt 0:08:34]} 16. Ne5 {[%emt 0:07:23]} Bb3 {[%emt 0:01:17]} 17. Qd3 {[%emt 0:01:01]} Bxe5 {[%emt 0:01:26]} 18. dxe5 {[%emt 0:00:05]} Nd7 {[%emt 0:01:02]} 19. f4 {[%emt 0:03:54]} Qb6+ {[%emt 0:02:22]} 20. Kh1 {[%emt 0:00:10]} Rfd8 21. Qg3 Nc5 {[%emt 0:06:11]} 22. Qe3 {[%emt 0:01:32]} Rab8 {[%emt 0:00:44]} 23. Rac1 {[%emt 0:04:38]} Nd3 {[%emt 0:09:12]} 24. Qxb6 Rxb6 {[%emt 0:01:44]} 25. Bxd3 {[%emt 0:00:40]} Rxd3 {[%emt 0:00:22]} 26. Rf2 {[%emt 0:00:30]} Rb8 {[%emt 0:01:26]} 27. Ne4 {[%emt 0:00:35]} Rbd8 {[%emt 0:00:54]} 28. Nd6 {[%emt 0:00:18]} Bd5 29. h3 Rxh3+ {[%emt 0:03:09]} 30. Kg1 {[%emt 0:00:42]} Rd3 {[%emt 0:03:35]} 31. Rcc2 {[%emt 0:06:28]} f6 {[%emt 0:02:55]} 32. Rce2 {[%emt 0:01:30]} Rd7 {[%emt 0:08:30]} 33. Kh2 {[%emt 0:00:53]} Bc4 {[%emt 0:06:57]} 34. Nxc4 {[%emt 0:01:23]} bxc4 {[%emt 0:00:07]} 35. e6 {[%emt 0:00:28]} Re7 {[%emt 0:00:57]} 36. Re4 {[%emt 0:03:05]} c3 {[%emt 0:02:30]} 37. f5 {[%emt 0:01:22]} g6 {[%emt 0:00:56]} 38. bxc3 {[%emt 0:03:35]} Rxc3 {[%emt 0:00:50]} 39. fxg6 {[%emt 0:03:02]} hxg6 {[%emt 0:00:07]} 40. Rxf6 {[%emt 0:00:54]} Kg7 {[%emt 0:02:34]} 41. Rf3 {[%emt 0:30:37]} Rxf3 {[%emt 0:30:46]} 42. gxf3 {[%emt 0:00:06]} Kf6 {[%emt 0:00:12]} 43. Kg3 {[%emt 0:00:27]} Rxe6 {[%emt 0:00:23]} 44. Rxa4 {[%emt 0:00:03]} Re3 {[%emt 0:01:15]} 45. Rc4 {[%emt 0:00:45]} Rxa3 {[%emt 0:00:08]} 46. Rxc6+ {[%emt 0:00:04]} Kg5 {[%emt 0:00:08]} 47. Rc5+ {[%emt 0:00:06]} Kf6 48. Kg4 Ra4+ {[%emt 0:01:19]} 49. f4 {[%emt 0:00:39]} Rb4 {[%emt 0:00:35]} 50. Rc6+ {[%emt 0:00:20]} Kg7 {[%emt 0:00:09]} 51. Kg5 {[%emt 0:01:28]} Rb5+ 52. Kh4 Rb4 {[%emt 0:01:17]} 53. Kg4 {[%emt 0:01:02]} Ra4 {[%emt 0:00:25]} 54. Kf3 {[%emt 0:00:51]} Rb4 {[%emt 0:00:50]} 55. Kg3 {[%emt 0:00:15]} Rb3+ {[%emt 0:00:09]} 56. Kh4 {[%emt 0:00:12]} Rb4 {[%emt 0:00:10]} 57. Kg4 {[%emt 0:00:05]} Ra4 {[%emt 0:00:08]} 58. Re6 {[%emt 0:01:03]} Rb4 {[%emt 0:00:21]} 59. Re7+ {[%emt 0:00:17]} Kf6 {[%emt 0:00:20]} 60. Re8 {[%emt 0:00:09]} Kf7 {[%emt 0:00:09]} 61. Ra8 {[%emt 0:00:42]} Kg7 {[%emt 0:00:15]} 62. Ra6 {[%emt 0:00:37]} Rc4 {[%emt 0:00:07]} 63. Rd6 {[%emt 0:00:30]} Ra4 {[%emt 0:00:07]} 64. Re6 {[%emt 0:00:31]} 1/2-1/2

[Event "58th Akiba Rubinstein D 2022"]
[Site "Polanica-Zdroj"]
[Date "2022.08.14"]
[Round "2.30"]
[White "Szalbierz, Piotr"]
[Black "Karpinski, Andrzej"]
[Result "1-0"]
[ECO "A45"]
[WhiteElo "1407"]
[BlackElo "1634"]
[Annotator "NA RC"]
[PlyCount "58"]
[EventDate "2022.08.13"]
[EventCountry "POL"]
[SourceTitle "playchess.com"]
[Source "ChessBase"]
[SourceQuality "1"]
[TimeControl "40/5400+30:1800+30"]

1. d4 {[%emt 0:00:02]} Nf6 {[%emt 0:00:13]} 2. Nc3 {[%emt 0:00:05]} d5 {[%emt 0:00:17]} 3. Bf4 {[%emt 0:00:06]} c6 {[%emt 0:02:14]} 4. e3 {[%emt 0:00:12]} Bf5 {[%emt 0:00:47]} 5. f3 {[%emt 0:00:34]} e6 {[%emt 0:01:41]} 6. g4 {[%emt 0:00:05]} Bg6 {[%emt 0:00:58]} 7. h4 {[%emt 0:00:10]} h5 {[%emt 0:00:35]} 8. g5 {[%emt 0:00:06]} Nfd7 {[%emt 0:00:32]} 9. Bd3 {[%emt 0:00:50]} Bxd3 {[%emt 0:00:30]} 10. Qxd3 {[%emt 0:00:08]} g6 {[%emt 0:01:32]} 11. Nge2 {[%emt 0:01:16]} a6 {[%emt 0:05:36]} 12. e4 {[%emt 0:01:01]} Bb4 {[%emt 0:03:03]} 13. O-O-O {[%emt 0:07:38]} b5 {[%emt 0:03:19]} 14. a3 {[%emt 0:16:47]} Be7 {[%emt 0:00:19]} 15. exd5 {[%emt 0:00:57]} cxd5 {[%emt 0:00:27]} 16. Rde1 {[%emt 0:09:54]} O-O {[%emt 0:01:01]} 17. Ng3 {[%emt 0:07:58]} Nc6 {[%emt 0:04:03]} 18. Rxe6 {[%emt 0:01:39]} fxe6 {[%emt 0:07:00]} 19. Qxg6+ {[%emt 0:00:21]} Kh8 {[%emt 0:00:11]} 20. Nxh5 Rf7 {[%emt 0:04:57]} 21. Qxf7 {[%emt 0:07:34]} Qg8 {[%emt 0:00:12]} 22. Qxg8+ {[%emt 0:02:59]} Rxg8 {[%emt 0:00:23]} 23. Be3 {[%emt 0:00:48]} Nb6 {[%emt 0:00:43]} 24. Ne2 {[%emt 0:06:26]} Nc4 {[%emt 0:00:30]} 25. Bd2 {[%emt 0:01:27]} e5 {[%emt 0:01:22]} 26. dxe5 {[%emt 0:02:00]} N6xe5 {[%emt 0:01:11]} 27. Bc3 {[%emt 0:00:35]} Kh7 {[%emt 0:01:10]} 28. b3 {[%emt 0:04:38]} Bxa3+ {[%emt 0:02:39]} 29. Kb1 {[%emt 0:01:07]} b4 1-0

[Event "58th Akiba Rubinstein D 2022"]
[Site "Polanica-Zdroj"]
[Date "2022.08.15"]
[Round "3.1"]
[White "Straszewski, Tomasz"]
[Black "Wolska, Marta"]
[Result "1-0"]
[ECO "B18"]
[WhiteElo "1716"]
[BlackElo "1588"]
[Annotator "NA RC"]
[PlyCount "75"]
[EventDate "2022.08.13"]
[EventCountry "POL"]
[SourceTitle "playchess.com"]
[Source "ChessBase"]
[SourceQuality "1"]
[TimeControl "40/5400+30:1800+30"]

1. e4 {[%emt 0:00:05]} c6 {[%emt 0:00:21]} 2. d4 {[%emt 0:00:08]} d5 {[%emt 0:00:03]} 3. Nc3 {[%emt 0:00:09]} dxe4 {[%emt 0:00:11]} 4. Nxe4 {[%emt 0:00:07]} Bf5 {[%emt 0:00:53]} 5. Ng3 {[%emt 0:00:07]} Bg6 {[%emt 0:00:04]} 6. h4 {[%emt 0:00:07]} h6 {[%emt 0:00:06]} 7. h5 {[%emt 0:00:05]} Bh7 {[%emt 0:00:03]} 8. Nf3 {[%emt 0:00:07]} Nd7 {[%emt 0:00:11]} 9. Bd3 {[%emt 0:00:07]} Bxd3 {[%emt 0:00:22]} 10. Qxd3 {[%emt 0:00:05]} Ngf6 {[%emt 0:00:08]} 11. Bf4 {[%emt 0:00:16]} Qa5+ {[%emt 0:01:22]} 12. Bd2 {[%emt 0:00:06]} Qc7 {[%emt 0:00:06]} 13. O-O-O {[%emt 0:00:22]} e6 {[%emt 0:00:18]} 14. Ne4 {[%emt 0:00:13]} Nxe4 {[%emt 0:00:35]} 15. Qxe4 {[%emt 0:00:05]} Nf6 {[%emt 0:00:18]} 16. Qe2 {[%emt 0:00:05]} O-O-O {[%emt 0:04:57]} 17. Rh4 {[%emt 0:02:11]} Be7 {[%emt 0:22:07]} 18. Ne5 {[%emt 0:29:54]} Nd7 {[%emt 0:09:18]} 19. Rg4 {[%emt 0:01:46]} Nxe5 {[%emt 0:04:52]} 20. dxe5 {[%emt 0:00:18]} Rhg8 {[%emt 0:04:00]} 21. Re1 {[%emt 0:09:23]} Rd5 {[%emt 0:06:33]} 22. c4 {[%emt 0:08:25]} Rdd8 {[%emt 0:01:31]} 23. Rh1 {[%emt 0:04:02]} Qb6 {[%emt 0:04:56]} 24. Rh3 {[%emt 0:02:36]} Bb4 {[%emt 0:05:02]} 25. Bxb4 {[%emt 0:11:54]} Qxb4 {[%emt 0:00:02]} 26. Rhg3 {[%emt 0:01:53]} Qf8 {[%emt 0:03:53]} 27. Qe3 {[%emt 0:16:46]} Kb8 {[%emt 0:01:49]} 28. a3 {[%emt 0:00:07]} Rd7 {[%emt 0:01:45]} 29. Qxh6 {[%emt 0:03:29]} Qd8 {[%emt 0:00:01]} 30. Qe3 {[%emt 0:00:37]} Rd1+ {[%emt 0:00:45]} 31. Kc2 {[%emt 0:00:02]} Rh1 {[%emt 0:00:40]} 32. Rxg7 {[%emt 0:06:11]} Qd1+ {[%emt 0:03:01]} 33. Kc3 {[%emt 0:00:01]} Rxg7 {[%emt 0:00:30]} 34. Rxg7 {[%emt 0:00:02]} Re1 {[%emt 0:00:38]} 35. Qd2 {[%emt 0:00:46]} Qxd2+ {[%emt 0:01:42]} 36. Kxd2 {[%emt 0:00:01]} Rxe5 {[%emt 0:00:13]} 37. h6 {[%emt 0:00:05]} Rh5 {[%emt 0:00:15]} 38. h7 {[%emt 0:00:04]} 1-0

[Event "58th Akiba Rubinstein D 2022"]
[Site "Polanica-Zdroj"]
[Date "2022.08.15"]
[Round "3.2"]
[White "Litwin, Tomasz"]
[Black "Urbanski, Wojciech"]
[Result "1/2-1/2"]
[ECO "A00"]
[WhiteElo "1580"]
[BlackElo "1632"]
[Annotator "NA RC"]
[PlyCount "36"]
[EventDate "2022.08.13"]
[EventCountry "POL"]
[SourceTitle "playchess.com"]
[Source "ChessBase"]
[SourceQuality "1"]
[TimeControl "40/5400+30:1800+30"]

1. b4 {[%emt 0:09:02]} d5 {[%emt 0:01:18]} 2. Bb2 {[%emt 0:00:01]} e6 {[%emt 0:00:25]} 3. e3 {[%emt 0:00:03]} Nf6 {[%emt 0:00:40]} 4. b5 {[%emt 0:00:01]} c5 {[%emt 0:01:53]} 5. Nf3 {[%emt 0:00:56]} Be7 {[%emt 0:02:47]} 6. c4 {[%emt 0:01:35]} Nbd7 {[%emt 0:02:58]} 7. Be2 {[%emt 0:00:15]} O-O {[%emt 0:02:36]} 8. O-O {[%emt 0:00:23]} Qc7 {[%emt 0:03:00]} 9. d3 {[%emt 0:13:49]} b6 {[%emt 0:03:23]} 10. Qb3 {[%emt 0:00:56]} Bb7 {[%emt 0:05:37]} 11. Nbd2 {[%emt 0:00:58]} Bd6 {[%emt 0:07:26]} 12. h3 {[%emt 0:03:27]} Rfd8 {[%emt 0:02:17]} 13. Rfd1 {[%emt 0:03:24]} Ne5 {[%emt 0:06:16]} 14. Nxe5 {[%emt 0:14:43]} Bxe5 {[%emt 0:00:11]} 15. a4 {[%emt 0:00:29]} Bxb2 {[%emt 0:11:06]} 16. Qxb2 {[%emt 0:00:19]} a5 {[%emt 0:00:48]} 17. Rac1 {[%emt 0:00:48]} Rac8 {[%emt 0:12:05]} 18. Bf3 {[%emt 0:13:47]} Nd7 {[%emt 0:07:30]} 1/2-1/2

[Event "58th Akiba Rubinstein D 2022"]
[Site "Polanica-Zdroj"]
[Date "2022.08.15"]
[Round "3.3"]
[White "Mareau, Timothe"]
[Black "Jasiulewicz, Dawid"]
[Result "0-1"]
[ECO "B21"]
[WhiteElo "1590"]
[BlackElo "1525"]
[Annotator "NA RC"]
[PlyCount "165"]
[EventDate "2022.08.13"]
[EventCountry "POL"]
[SourceTitle "playchess.com"]
[Source "ChessBase"]
[SourceQuality "1"]
[TimeControl "40/5400+30:1800+30"]

1. e4 {[%emt 0:00:06]} c5 {[%emt 0:00:05]} 2. d4 {[%emt 0:00:11]} cxd4 {[%emt 0:00:05]} 3. c3 {[%emt 0:00:11]} dxc3 {[%emt 0:00:04]} 4. Nxc3 {[%emt 0:00:10]} Nc6 {[%emt 0:00:05]} 5. Nf3 {[%emt 0:00:09]} d6 {[%emt 0:00:05]} 6. Bc4 {[%emt 0:00:07]} e6 {[%emt 0:00:04]} 7. O-O {[%emt 0:00:28]} Nf6 {[%emt 0:00:05]} 8. Qe2 {[%emt 0:00:22]} a6 {[%emt 0:00:09]} 9. Rd1 {[%emt 0:00:24]} Qc7 {[%emt 0:00:06]} 10. Bf4 {[%emt 0:01:19]} Be7 {[%emt 0:00:07]} 11. Rac1 {[%emt 0:01:23]} O-O {[%emt 0:00:14]} 12. Bb3 {[%emt 0:02:54]} Qb8 {[%emt 0:00:19]} 13. Na4 {[%emt 0:07:10]} b5 {[%emt 0:01:00]} 14. Rxc6 {[%emt 0:00:59]} bxa4 {[%emt 0:00:12]} 15. Bxa4 {[%emt 0:00:14]} Bd7 {[%emt 0:00:18]} 16. Rc4 {[%emt 0:07:09]} Bxa4 {[%emt 0:00:23]} 17. Rxa4 Qb5 {[%emt 0:00:14]} 18. Qxb5 {[%emt 0:03:32]} axb5 {[%emt 0:00:07]} 19. Rxa8 {[%emt 0:00:15]} Rxa8 {[%emt 0:00:06]} 20. Bxd6 {[%emt 0:00:13]} Bxd6 {[%emt 0:00:05]} 21. Rxd6 {[%emt 0:00:07]} h6 {[%emt 0:01:42]} 22. a3 {[%emt 0:08:54]} b4 {[%emt 0:00:30]} 23. Rd3 {[%emt 0:00:30]} Nxe4 24. Kf1 bxa3 {[%emt 0:05:58]} 25. bxa3 {[%emt 0:12:07]} Nc5 {[%emt 0:01:11]} 26. Rc3 {[%emt 0:00:37]} Ne4 {[%emt 0:00:09]} 27. Rb3 {[%emt 0:01:32]} Ra5 {[%emt 0:06:38]} 28. Ke2 {[%emt 0:01:59]} Nd6 {[%emt 0:01:25]} 29. Nd2 {[%emt 0:01:24]} Nb5 {[%emt 0:03:02]} 30. Rd3 {[%emt 0:13:04]} Rxa3 {[%emt 0:03:57]} 31. Rd8+ {[%emt 0:04:02]} Kh7 {[%emt 0:00:07]} 32. Ne4 {[%emt 0:01:01]} Ra7 {[%emt 0:10:13]} 33. g3 {[%emt 0:03:04]} Re7 {[%emt 0:11:24]} 34. h4 {[%emt 0:06:23]} Kg6 {[%emt 0:03:11]} 35. Nc5 {[%emt 0:02:31]} e5 {[%emt 0:08:05]} 36. Ke3 {[%emt 0:03:47]} Kf5 {[%emt 0:04:55]} 37. Ne4 {[%emt 0:03:03]} Nd4 {[%emt 0:05:33]} 38. f3 {[%emt 0:05:18]} h5 {[%emt 0:07:54]} 39. Rd6 {[%emt 0:05:27]} f6 {[%emt 0:02:16]} 40. g4+ {[%emt 0:01:10]} Kg6 {[%emt 0:01:47]} 41. Ng3 {[%emt 0:31:03]} Ra7 {[%emt 0:34:40]} 42. gxh5+ {[%emt 0:04:05]} Kf7 {[%emt 0:02:28]} 43. Ke4 {[%emt 0:00:40]} Ra3 {[%emt 0:01:09]} 44. h6 {[%emt 0:00:24]} gxh6 {[%emt 0:05:32]} 45. Nh5 {[%emt 0:00:19]} Ne6 {[%emt 0:00:39]} 46. Rd7+ {[%emt 0:00:21]} Kg6 {[%emt 0:00:56]} 47. Rd6 {[%emt 0:01:30]} Ra4+ {[%emt 0:01:48]} 48. Ke3 {[%emt 0:00:36]} Kxh5 {[%emt 0:00:20]} 49. Rxe6 {[%emt 0:00:04]} Kg6 {[%emt 0:00:51]} 50. h5+ {[%emt 0:00:26]} Kf5 {[%emt 0:00:05]} 51. Re8 {[%emt 0:00:54]} Rh4 {[%emt 0:00:06]} 52. Kf2 {[%emt 0:00:23]} Kf4 {[%emt 0:00:10]} 53. Re6 {[%emt 0:00:33]} Kf5 {[%emt 0:00:06]} 54. Re8 {[%emt 0:00:04]} Rxh5 {[%emt 0:00:10]} 55. Rh8 {[%emt 0:00:14]} Kf4 {[%emt 0:00:09]} 56. Kg2 {[%emt 0:00:11]} f5 {[%emt 0:00:34]} 57. Ra8 {[%emt 0:00:34]} Rg5+ {[%emt 0:00:21]} 58. Kf2 {[%emt 0:00:05]} h5 {[%emt 0:00:07]} 59. Ra7 {[%emt 0:00:46]} Rg8 {[%emt 0:00:23]} 60. Ra4+ {[%emt 0:00:09]} e4 {[%emt 0:00:05]} 61. fxe4 {[%emt 0:00:14]} fxe4 {[%emt 0:00:04]} 62. Ra7 {[%emt 0:00:33]} Re8 {[%emt 0:05:53]} 63. Rf7+ {[%emt 0:00:34]} Kg4 {[%emt 0:00:06]} 64. Rg7+ {[%emt 0:00:12]} Kh3 {[%emt 0:00:08]} 65. Rg1 {[%emt 0:01:19]} h4 {[%emt 0:02:16]} 66. Ke3 {[%emt 0:00:50]} Kh2 {[%emt 0:00:09]} 67. Rg4 {[%emt 0:00:22]} h3 {[%emt 0:00:04]} 68. Rg6 {[%emt 0:00:25]} Kh1 {[%emt 0:00:07]} 69. Rg7 {[%emt 0:01:00]} h2 {[%emt 0:00:16]} 70. Rg6 {[%emt 0:00:16]} Rf8 {[%emt 0:00:31]} 71. Ke2 {[%emt 0:01:23]} Ra8 {[%emt 0:00:42]} 72. Kf1 {[%emt 0:00:42]} Ra1+ {[%emt 0:00:39]} 73. Kf2 {[%emt 0:00:06]} e3+ {[%emt 0:00:05]} 74. Kxe3 {[%emt 0:00:32]} Rg1 {[%emt 0:00:05]} 75. Rf6 {[%emt 0:01:06]} Kg2 {[%emt 0:00:07]} 76. Rg6+ {[%emt 0:00:05]} Kf1 {[%emt 0:00:07]} 77. Rf6+ {[%emt 0:00:03]} Ke1 {[%emt 0:00:06]} 78. Ra6 {[%emt 0:00:21]} Rg3+ {[%emt 0:00:04]} 79. Kf4 {[%emt 0:00:13]} Rf3+ {[%emt 0:00:04]} 80. Ke4 {[%emt 0:00:15]} Rh3 {[%emt 0:01:16]} 81. Ra1+ {[%emt 0:00:29]} Kf2 {[%emt 0:00:04]} 82. Ra2+ {[%emt 0:00:16]} Kg3 {[%emt 0:00:08]} 83. Kd4 0-1

[Event "58th Akiba Rubinstein D 2022"]
[Site "Polanica-Zdroj"]
[Date "2022.08.15"]
[Round "3.4"]
[White "Wilgosz, Jan"]
[Black "Gibala, Adam"]
[Result "0-1"]
[ECO "C00"]
[WhiteElo "1597"]
[BlackElo "1549"]
[Annotator "NA RC"]
[PlyCount "82"]
[EventDate "2022.08.13"]
[EventCountry "POL"]
[SourceTitle "playchess.com"]
[Source "ChessBase"]
[SourceQuality "1"]
[TimeControl "40/5400+30:1800+30"]

1. e4 {[%emt 0:03:20]} e6 {[%emt 0:00:02]} 2. d4 {[%emt 0:00:18]} d5 {[%emt 0:00:04]} 3. Bd3 {[%emt 0:00:46]} c5 {[%emt 0:00:59]} 4. exd5 {[%emt 0:00:51]} exd5 {[%emt 0:00:16]} 5. dxc5 {[%emt 0:00:16]} Bxc5 {[%emt 0:00:15]} 6. Nf3 {[%emt 0:00:29]} Ne7 {[%emt 0:00:25]} 7. h3 {[%emt 0:03:34]} Nbc6 {[%emt 0:00:50]} 8. O-O {[%emt 0:06:45]} O-O {[%emt 0:00:46]} 9. a3 {[%emt 0:16:47]} a5 {[%emt 0:00:36]} 10. Nc3 {[%emt 0:07:29]} Qd6 {[%emt 0:02:00]} 11. Bg5 {[%emt 0:09:05]} f6 {[%emt 0:00:14]} 12. Bh4 {[%emt 0:10:30]} g5 {[%emt 0:02:14]} 13. Bxg5 {[%emt 0:00:39]} fxg5 {[%emt 0:00:05]} 14. Nxg5 {[%emt 0:02:33]} h6 {[%emt 0:00:43]} 15. Qh5 {[%emt 0:07:40]} Bf5 {[%emt 0:01:30]} 16. Nb5 {[%emt 0:04:49]} Qf6 {[%emt 0:01:27]} 17. Bxf5 {[%emt 0:02:52]} Nxf5 {[%emt 0:00:09]} 18. Nf3 {[%emt 0:00:55]} Qf7 {[%emt 0:02:35]} 19. Qg4+ {[%emt 0:02:56]} Qg7 {[%emt 0:00:16]} 20. Qxg7+ {[%emt 0:01:38]} Kxg7 {[%emt 0:00:05]} 21. Nc7 {[%emt 0:00:31]} Bb6 {[%emt 0:02:35]} 22. Nxa8 {[%emt 0:00:39]} Rxa8 23. Kh1 {[%emt 0:04:21]} Kf6 {[%emt 0:00:33]} 24. Rad1 {[%emt 0:00:42]} Rd8 {[%emt 0:00:13]} 25. g4 {[%emt 0:03:05]} Nfd4 {[%emt 0:01:25]} 26. Nxd4 {[%emt 0:00:41]} Nxd4 {[%emt 0:00:11]} 27. c3 {[%emt 0:01:42]} Nf3 {[%emt 0:00:07]} 28. Kg2 {[%emt 0:01:02]} Ne5 {[%emt 0:00:07]} 29. b4 {[%emt 0:01:28]} a4 {[%emt 0:00:04]} 30. c4 {[%emt 0:01:47]} Nxc4 {[%emt 0:01:39]} 31. Rd3 {[%emt 0:00:30]} Ne5 {[%emt 0:00:20]} 32. Rg3 {[%emt 0:00:51]} d4 {[%emt 0:00:30]} 33. f4 {[%emt 0:00:40]} Nc4 {[%emt 0:00:09]} 34. g5+ {[%emt 0:00:53]} Kf5 {[%emt 0:00:07]} 35. Re1 {[%emt 0:01:31]} d3 {[%emt 0:00:25]} 36. Kf3 {[%emt 0:01:49]} d2 {[%emt 0:00:14]} 37. Rd1 {[%emt 0:00:19]} Nb2 {[%emt 0:00:47]} 38. Ke2 {[%emt 0:01:20]} Nxd1 {[%emt 0:00:07]} 39. Kxd1 {[%emt 0:00:02]} Bf2 {[%emt 0:00:30]} 40. Rg2 {[%emt 0:00:49]} Be1 {[%emt 0:00:14]} 41. g6 {[%emt 0:30:40]} Rc8 {[%emt 0:30:09]} 0-1